bitfinex/quotes_BTCUSD_20251214
["timestamp","ask_amount","ask_price","bid_price","bid_amount"]
[1765707602006,0.10966455,89958.0,89957.0,0.03337986]
[1765707602218,0.10666455,89958.0,89957.0,0.03337986]
[1765707602421,0.10666455,89958.0,89957.0,0.03637986]
[1765707602628,0.10166455,89958.0,89957.0,0.03637986]
[1765707603287,0.18211455,89958.0,89957.0,0.03637986]
[1765707603462,0.40444052,89958.0,89957.0,0.03637986]
[1765707603670,0.40444052,89958.0,89957.0,0.003]
[1765707604220,0.40444052,89958.0,89957.0,0.004]
[1765707604439,0.40444052,89958.0,89954.0,0.04450292]
[1765707604440,0.01111642,89957.0,89954.0,0.04450292]
[1765707604678,0.05032287,89957.0,89955.0,0.23344998]
[1765707604826,0.07443287,89957.0,89955.0,0.23344998]
[1765707605032,0.02572287,89957.0,89955.0,0.23344998]
[1765707605852,0.02572287,89957.0,89955.0,0.23844998]
[1765707607040,0.00161287,89957.0,89955.0,0.23844998]
[1765707607531,0.00161287,89957.0,89956.0,0.0822474]
[1765707607753,0.10005168,89958.0,89957.0,0.22232844]
[1765707607984,0.10005168,89958.0,89957.0,0.30323844]
[1765707609058,0.10005168,89958.0,89957.0,0.30823844]
[1765707610489,0.10005168,89958.0,89957.0,0.35825683]
[1765707610904,0.10005168,89958.0,89957.0,0.36125683]
[1765707611223,0.10005168,89958.0,89957.0,0.35625683]
[1765707611388,0.10005168,89958.0,89957.0,0.35325683]
[1765707611615,0.10005168,89958.0,89957.0,0.35425683]
[1765707613326,0.10005168,89958.0,89957.0,0.35325683]
[1765707613726,0.10105168,89958.0,89957.0,0.35325683]
[1765707613921,0.10105168,89958.0,89957.0,0.38663412]
[1765707614127,0.10305168,89958.0,89957.0,0.38663412]
[1765707615185,0.10305168,89958.0,89957.0,0.67733412]
[1765707616442,0.10305168,89958.0,89957.0,1.67733412]
[1765707617065,0.08498344,89958.0,89957.0,1.67733412]
[1765707617473,0.08198344,89958.0,89957.0,1.67733412]
[1765707617649,0.05105168,89958.0,89957.0,1.67733412]
[1765707617850,0.05205168,89958.0,89957.0,1.67733412]
[1765707618517,0.05205168,89958.0,89957.0,0.67733412]
[1765707618640,0.05205168,89958.0,89957.0,1.67733412]
[1765707621485,0.05105168,89958.0,89957.0,1.67733412]
[1765707621692,0.05005168,89958.0,89957.0,1.67733412]
[1765707621903,0.05005168,89958.0,89957.0,1.67933412]
[1765707623212,0.05005168,89958.0,89957.0,1.75712944]
[1765707627314,0.05005168,89958.0,89957.0,1.67733412]
[1765707627974,0.05005168,89958.0,89957.0,1.73822838]
[1765707629371,1.68e-06,89958.0,89957.0,1.73822838]
[1765707629544,0.05,89978.0,89970.0,0.51299632]
[1765707629749,0.05,89978.0,89970.0,0.61279471]
[1765707629750,0.0007872,89971.0,89970.0,0.61279471]
[1765707629949,0.0007872,89971.0,89970.0,0.66037471]
[1765707630150,0.0007872,89971.0,89970.0,0.69374458]
[1765707630596,0.0027872,89971.0,89970.0,0.69374458]
[1765707630802,0.0047872,89971.0,89970.0,0.69374458]
[1765707633812,0.0047872,89971.0,89970.0,1.69374458]
[1765707634567,0.0027872,89971.0,89970.0,0.69374458]
[1765707634765,0.0027872,89971.0,89970.0,0.67618458]
[1765707634941,0.0027872,89971.0,89970.0,0.69374458]
[1765707635140,0.0007872,89971.0,89970.0,0.69374458]
[1765707637009,0.0027872,89971.0,89970.0,0.69374458]
[1765707637420,0.0047872,89971.0,89970.0,0.69374458]
[1765707638123,0.0047872,89971.0,89970.0,1.69374458]
[1765707638323,0.05,89978.0,89977.0,1.56299741]
[1765707638475,0.05,89978.0,89977.0,1.61411741]
[1765707638676,0.05,89978.0,89977.0,1.66169741]
[1765707639078,0.05,89978.0,89977.0,1.69506153]
[1765707640093,0.05,89978.0,89977.0,1.69606153]
[1765707640714,0.05,89978.0,89977.0,1.69706153]
[1765707641878,0.05,89978.0,89977.0,0.77689407]
[1765707642408,0.05,89978.0,89977.0,0.69606153]
[1765707642604,0.05,89978.0,89977.0,0.69706153]
[1765707643407,0.05,89978.0,89977.0,0.40436153]
[1765707643835,0.053,89978.0,89977.0,0.40436153]
[1765707652980,0.053,89978.0,89977.0,0.75606153]
[1765707653599,0.053,89978.0,89977.0,0.54866153]
[1765707653913,0.053,89978.0,89977.0,0.51296153]
[1765707654283,0.053,89978.0,89977.0,0.40436153]
[1765707660301,0.053,89978.0,89977.0,1.40436153]
[1765707661136,0.053,89978.0,89977.0,0.78306153]
[1765707661342,0.053,89978.0,89977.0,0.63276153]
[1765707662149,0.053,89978.0,89977.0,0.40436153]
[1765707662295,0.053,89978.0,89977.0,1.40436153]
[1765707668236,0.053,89978.0,89977.0,1.48419407]
[1765707668620,0.053,89978.0,89977.0,1.69506153]
[1765707669593,0.052,89978.0,89977.0,1.69506153]
[1765707669804,0.05,89978.0,89977.0,1.69506153]
[1765707669982,0.05,89978.0,89977.0,1.69606153]
[1765707670969,0.05,89978.0,89977.0,1.69806153]
[1765707672215,0.05,89978.0,89977.0,1.79812355]
[1765707672630,0.05,89979.0,89978.0,1.05001839]
[1765707672856,0.05,89979.0,89978.0,1.12642839]
[1765707673497,0.05,89979.0,89978.0,1.22649041]
[1765707673700,0.05,89979.0,89978.0,1.12642839]
[1765707674059,0.05,89979.0,89978.0,1.41712839]
[1765707674257,0.01250069,89980.0,89979.0,1.27229247]
[1765707674258,0.00680384,89980.0,89979.0,1.27229247]
[1765707674462,0.00680384,89980.0,89979.0,1.34870247]
[1765707674795,3.84e-06,89980.0,89979.0,1.63940247]
[1765707674956,0.0004,89994.0,89993.0,1.56295789]
[1765707675163,0.0004,89994.0,89993.0,1.68854215]
[1765707675362,0.0004,89994.0,89993.0,1.73477215]
[1765707675569,0.0004,89994.0,89993.0,1.73922015]
[1765707675790,0.0004,90016.0,90009.0,0.2222]
[1765707675998,0.00049468,90010.0,90009.0,0.25238]
[1765707676199,0.00049468,90010.0,90009.0,0.29861]
[1765707677895,0.00049468,90010.0,90009.0,0.30161]
[1765707678315,0.00049468,90010.0,90009.0,0.35162839]
[1765707678565,0.00049468,90010.0,90009.0,0.35462839]
[1765707678786,0.00049468,90010.0,90009.0,0.35162839]
[1765707678978,0.00249468,90010.0,90009.0,0.34862839]
[1765707679404,0.00449468,90010.0,90009.0,0.34862839]
[1765707681163,0.00449468,90010.0,90009.0,1.34862839]
[1765707684625,0.00449468,90010.0,90009.0,1.6992185]
[1765707684829,0.00449468,90010.0,90009.0,1.63932839]
[1765707685469,0.00049468,90010.0,90009.0,1.63932839]
[1765707685759,0.00049468,90010.0,90009.0,0.58931]
[1765707686365,0.00049468,90010.0,90009.0,1.63932839]
[1765707688150,0.00149468,90010.0,90009.0,1.63932839]
[1765707690042,0.00049468,90010.0,90009.0,1.63932839]
[1765707690269,0.00049468,90010.0,90009.0,1.64132839]
[1765707693836,4.68e-06,90011.0,90009.0,1.64132839]
[1765707694052,4.68e-06,90011.0,90010.0,1.41781244]
[1765707694228,4.68e-06,90011.0,90010.0,1.41650839]
[1765707694427,4.68e-06,90011.0,90010.0,1.44986145]
[1765707696400,4.68e-06,90011.0,90010.0,1.45086145]
[1765707696598,4.68e-06,90011.0,90010.0,0.45186145]
[1765707696798,4.68e-06,90011.0,90010.0,1.45186145]
[1765707700389,4.68e-06,90012.0,90011.0,0.22219506]
[1765707700618,4.68e-06,90012.0,90011.0,1.65622345]
[1765707701100,4.68e-06,90012.0,90011.0,1.66067027]
[1765707702527,4.68e-06,90012.0,90011.0,1.66167027]
[1765707702741,4.68e-06,90012.0,90011.0,1.66267027]
[1765707707334,4.68e-06,90012.0,90011.0,1.7625393]
[1765707710356,4.68e-06,90012.0,90011.0,1.66267027]
[1765707713422,4.68e-06,90012.0,90011.0,1.76244821]
[1765707714320,4.68e-06,90012.0,90011.0,1.66267027]
[1765707715955,4.68e-06,90012.0,90011.0,0.66267027]
[1765707716149,4.68e-06,90012.0,90011.0,1.66267027]
[1765707716323,0.0004,90016.0,90015.0,1.27220358]
[1765707716493,0.0004,90016.0,90015.0,1.30169358]
[1765707716689,0.0004,90016.0,90015.0,1.34215358]
[1765707716894,0.0004,90016.0,90015.0,1.37550475]
[1765707718632,0.0004,90023.0,90015.0,1.37550475]
[1765707718633,0.0004,90023.0,90022.0,0.5628863]
[1765707718791,0.05,90038.0,90022.0,0.5628863]
[1765707718792,0.05,90038.0,90037.0,0.27214929]
[1765707718994,0.05011608,90038.0,90037.0,0.31663929]
[1765707719311,0.05011608,90038.0,90037.0,0.39044668]
[1765707720741,0.05111608,90038.0,90037.0,0.39044668]
[1765707721443,0.05211608,90038.0,90037.0,1.39044668]
[1765707722254,0.05211608,90038.0,90037.0,0.39044668]
[1765707722613,0.05372895,90038.0,90037.0,0.29996829]
[1765707722834,0.05372895,90038.0,90037.0,0.34042829]
[1765707723038,0.05372895,90038.0,90037.0,0.40035543]
[1765707723475,0.05372895,90038.0,90037.0,0.34042829]
[1765707726178,0.05372895,90038.0,90037.0,0.29996829]
[1765707726628,0.05372895,90038.0,90037.0,0.34042829]
[1765707727562,0.05372895,90038.0,90037.0,0.29996829]
[1765707727721,0.05372895,90038.0,90037.0,0.2221309]
[1765707728552,0.05272895,90038.0,90037.0,0.2221309]
[1765707728774,0.05172895,90038.0,90037.0,0.2261309]
[1765707729146,0.05172895,90038.0,90037.0,0.2301309]
[1765707734912,0.05172895,90038.0,90037.0,0.2596209]
[1765707735097,0.05172895,90038.0,90037.0,0.3000809]
[1765707735290,0.05011608,90038.0,90037.0,0.3000809]
[1765707735717,0.05011608,90038.0,90037.0,0.33343051]
[1765707740070,0.05011608,90038.0,90037.0,0.3834489]
[1765707747046,0.05011608,90038.0,90037.0,0.29297051]
[1765707747410,0.05011608,90038.0,90037.0,0.33213051]
[1765707751223,0.05172895,90038.0,90037.0,0.26348051]
[1765707751456,0.05172895,90038.0,90037.0,0.008]
[1765707751457,0.11758895,90038.0,90037.0,0.008]
[1765707752403,0.11758895,90038.0,90037.0,0.004]
[1765707752835,0.07945895,90038.0,90037.0,0.004]
[1765707753040,0.07945895,90038.0,90037.0,0.007]
[1765707753427,0.07945895,90038.0,90037.0,0.004]
[1765707753823,0.07945895,90038.0,90037.0,0.007]
[1765707754259,0.05172895,90038.0,90037.0,0.007]
[1765707754404,0.05172895,90038.0,90037.0,0.003]
[1765707754823,0.10762895,90038.0,90037.0,0.007]
[1765707756179,0.10762895,90038.0,90037.0,0.04695247]
[1765707758264,0.10762895,90038.0,90037.0,0.007]
[1765707759844,0.17348895,90038.0,90037.0,0.007]
[1765707760013,0.201255,90038.0,90037.0,0.007]
[1765707761515,0.201255,90038.0,90037.0,0.003]
[1765707761886,0.201255,90038.0,90037.0,0.006]
[1765707762218,0.201255,90038.0,90037.0,0.003]
[1765707762621,0.201255,90038.0,90037.0,0.006]
[1765707763596,0.26214926,90038.0,90037.0,0.006]
[1765707763792,0.23438321,90038.0,90037.0,0.003]
[1765707763995,0.26214926,90038.0,90037.0,0.003]
[1765707764228,0.0111074,90030.0,90027.0,0.01110777]
[1765707764432,0.04752,90028.0,90025.0,0.01110802]
[1765707764596,0.02773,90027.0,90025.0,0.01110802]
[1765707765120,0.02773,90027.0,90026.0,0.22215804]
[1765707765715,0.05792,90028.0,90027.0,0.003]
[1765707765906,0.01979,90028.0,90027.0,0.003]
[1765707766101,0.04752,90028.0,90027.0,0.003]
[1765707766315,0.04752,90028.0,90026.0,0.22215804]
[1765707766717,0.04752,90028.0,90026.0,0.22615804]
[1765707766955,0.04752,90028.0,90026.0,0.004]
[1765707767114,0.04752,90028.0,90025.0,0.01610802]
[1765707767512,0.03813,90027.0,90026.0,0.004]
[1765707767933,0.01979,90028.0,90026.0,0.22615711]
[1765707768137,0.06586,90027.0,90026.0,0.004]
[1765707769476,0.06586,90027.0,90025.0,0.01510802]
[1765707769674,0.06586,90026.0,90025.0,0.01510802]
[1765707769874,0.06586,90026.0,90025.0,0.01110802]
[1765707770438,0.02773,90026.0,90025.0,0.01110802]
[1765707771079,0.02773,90026.0,90025.0,0.01510802]
[1765707771372,0.02776944,90027.0,90025.0,0.01510802]
[1765707771606,0.02776944,90027.0,90026.0,0.22215804]
[1765707771811,0.01979,90028.0,90026.0,0.22215804]
[1765707772707,0.06586,90027.0,90025.0,0.009]
[1765707772975,0.05549975,90026.0,90025.0,0.004]
[1765707773196,0.09362975,90026.0,90023.0,0.01110827]
[1765707773416,0.04752,90023.0,90018.0,0.01110851]
[1765707773735,0.03813,90022.0,90018.0,0.01110851]
[1765707774090,0.03813,90022.0,90016.0,0.01110913]
[1765707774594,0.05862901,90017.0,90014.0,0.01110938]
[1765707774746,0.02773,90016.0,90015.0,0.22218519]
[1765707775986,0.01979,90017.0,90015.0,0.22218519]
[1765707776195,0.23327448,90023.0,90018.0,0.01110888]
[1765707776531,0.01110827,90023.0,90018.0,0.01110888]
[1765707776948,0.02777037,90024.0,90020.0,0.01110864]
[1765707777157,0.01110814,90024.0,90021.0,0.01110851]
[1765707778125,0.01110827,90023.0,90019.0,0.02541876]
[1765707778528,0.01110827,90023.0,90020.0,0.01110864]
[1765707778735,0.01110827,90023.0,90021.0,0.004]
[1765707778932,0.01110827,90023.0,90020.0,0.01110864]
[1765707779257,0.01110827,90023.0,90021.0,0.003]
[1765707779620,0.01110827,90023.0,90020.0,0.01110864]
[1765707779821,0.03887808,90025.0,90022.0,0.01110839]
[1765707780022,0.03089765,90028.0,90023.0,0.01110827]
[1765707780222,0.03795201,90027.0,90024.0,0.01110814]
[1765707780432,0.01110777,90027.0,90024.0,0.01110814]
[1765707781048,0.02776913,90028.0,90025.0,0.24208853]
[1765707781411,0.10601608,90038.0,90037.0,0.2221309]
[1765707781575,0.10601608,90038.0,90037.0,0.3002309]
[1765707782543,0.10601608,90038.0,90037.0,0.3032309]
[1765707783005,0.10601608,90038.0,90037.0,0.3052309]
[1765707794332,0.10601608,90038.0,90037.0,0.33858129]
[1765707795408,0.10601608,90038.0,90037.0,0.67929968]
[1765707795624,0.10601608,90038.0,90037.0,1.67929968]
[1765707795788,0.10601608,90038.0,90037.0,1.74019394]
[1765707796173,0.10601608,90038.0,90037.0,1.73819394]
[1765707796372,0.10601608,90038.0,90037.0,1.73519394]
[1765707796578,0.10801608,90038.0,90037.0,1.73519394]
[1765707796821,0.11101608,90038.0,90037.0,1.73519394]
[1765707797001,0.10801608,90038.0,90037.0,1.73519394]
[1765707797231,0.10801608,90038.0,90037.0,0.73519394]
[1765707797408,0.10901608,90038.0,90037.0,1.73519394]
[1765707798171,0.10701608,90038.0,90037.0,1.73519394]
[1765707798426,0.10801608,90038.0,90037.0,1.73519394]
[1765707800217,0.10801608,90038.0,90037.0,0.73519394]
[1765707800425,0.10801608,90038.0,90037.0,1.73519394]
[1765707801195,0.0004,90048.0,90037.0,1.73519394]
[1765707801196,0.0004,90048.0,90040.0,1.56284189]
[1765707801414,0.0004,90048.0,90040.0,1.60490189]
[1765707801700,0.0004,90048.0,90040.0,1.64395189]
[1765707802120,0.0004,90048.0,90043.0,1.56283449]
[1765707802335,0.0004,90048.0,90047.0,1.56282462]
[1765707802526,0.0004,90048.0,90047.0,1.58736462]
[1765707802737,0.0004,90048.0,90047.0,1.62641462]
[1765707803647,0.0024,90048.0,90047.0,1.62641462]
[1765707804827,0.0024,90048.0,90047.0,1.63399672]
[1765707806219,0.0075821,90065.0,90064.0,0.2220643]
[1765707806421,0.0075821,90065.0,90064.0,0.2479043]
[1765707806602,0.0075821,90065.0,90064.0,0.2843543]
[1765707807183,0.0075821,90065.0,90064.0,0.31210771]
[1765707807972,0.0105821,90065.0,90064.0,0.3621261]
[1765707808315,0.01121109,90065.0,90064.0,0.3621261]
[1765707808514,0.01321109,90065.0,90064.0,0.3621261]
[1765707811359,0.01321109,90065.0,90064.0,1.3621261]
[1765707812996,0.01321109,90065.0,90064.0,1.6528261]
[1765707818050,0.01121109,90065.0,90064.0,1.6528261]
[1765707818667,0.00821109,90065.0,90064.0,1.6528261]
[1765707818870,0.00921109,90065.0,90064.0,1.6528261]
[1765707828144,0.00921109,90065.0,90064.0,1.73274224]
[1765707828331,1.09e-06,90065.0,90064.0,1.73274224]
[1765707830422,1.09e-06,90065.0,90064.0,1.6528261]
[1765707833204,1.09e-06,90065.0,90064.0,1.73259829]
[1765707833620,1.09e-06,90065.0,90064.0,1.6528261]
[1765707834027,1.09e-06,90068.0,90067.0,1.5886153]
[1765707834138,0.00038792,90068.0,90067.0,1.5886153]
[1765707834343,0.0004,90092.0,90091.0,0.22199775]
[1765707834573,0.00051603,90092.0,90091.0,0.26385775]
[1765707834769,0.00051603,90092.0,90091.0,0.30030775]
[1765707834970,0.0021289,90092.0,90091.0,0.26385775]
[1765707835185,0.0021289,90092.0,90091.0,0.23801775]
[1765707835598,0.0021289,90092.0,90091.0,0.22199775]
[1765707835796,0.02987831,90092.0,90091.0,0.22499775]
[1765707836960,0.0021289,90092.0,90091.0,0.30203775]
[1765707837389,0.0021289,90092.0,90091.0,0.29903775]
[1765707837590,0.00051603,90092.0,90091.0,0.29903775]
[1765707837795,0.00051603,90092.0,90091.0,0.30203775]
[1765707840014,0.00051603,90092.0,90091.0,1.31185614]
[1765707840445,0.0013244,90092.0,90091.0,1.35205614]
[1765707840865,0.0013244,90092.0,90091.0,0.69105614]
[1765707841042,0.0013244,90092.0,90091.0,0.68805614]
[1765707841366,0.0033244,90092.0,90091.0,1.34705614]
[1765707842937,0.0033244,90092.0,90091.0,0.72965614]
[1765707843141,0.0033244,90092.0,90091.0,0.67995614]
[1765707844570,0.0033244,90092.0,90091.0,1.34705614]
[1765707844971,0.0033244,90092.0,90091.0,1.19045614]
[1765707845311,0.0033244,90092.0,90091.0,1.19489954]
[1765707845512,0.0033244,90092.0,90091.0,1.35149954]
[1765707846007,0.0033244,90092.0,90091.0,1.11429954]
[1765707846720,0.0033244,90092.0,90091.0,1.35149954]
[1765707846892,0.0033244,90092.0,90091.0,0.60559954]
[1765707847572,0.0033244,90092.0,90091.0,1.35149954]
[1765707848051,0.0013244,90092.0,90091.0,1.35149954]
[1765707849874,0.0023244,90092.0,90091.0,1.35149954]
[1765707852792,0.0023244,90092.0,90091.0,1.64219954]
[1765707853117,0.0023244,90092.0,90091.0,1.72194392]
[1765707853310,0.0023244,90092.0,90091.0,1.64219954]
[1765707854119,0.0023244,90092.0,90091.0,1.72194392]
[1765707854372,0.0023244,90092.0,90091.0,1.64219954]
[1765707859161,0.0023244,90092.0,90091.0,1.72194392]
[1765707859363,0.0023244,90092.0,90091.0,1.64219954]
[1765707865187,0.0013244,90092.0,90091.0,1.64219954]
[1765707865385,0.0004,90101.0,90100.0,0.56269397]
[1765707865588,0.0004,90101.0,90100.0,1.58610397]
[1765707865802,0.0004,90101.0,90100.0,1.62041397]
[1765707866006,0.0004,90101.0,90100.0,1.62485663]
[1765707866573,0.0014,90101.0,90100.0,1.62485663]
[1765707867009,0.0014,90101.0,90100.0,1.70448941]
[1765707867212,0.0014,90101.0,90100.0,1.62485663]
[1765707867816,0.0004,90103.0,90102.0,1.56268904]
[1765707868026,0.0004,90129.0,90109.0,0.05001839]
[1765707868231,0.0004,90129.0,90110.0,1.34458933]
[1765707868791,0.0004,90129.0,90110.0,1.34903164]
[1765707870198,0.0014,90111.0,90110.0,1.34903164]
[1765707870607,0.0014,90111.0,90110.0,1.63973164]
[1765707872008,0.0014,90111.0,90110.0,1.71937168]
[1765707872218,0.0014,90111.0,90110.0,1.63973164]
[1765707872421,0.00196864,90111.0,90110.0,1.63973164]
[1765707873152,0.00196864,90111.0,90110.0,1.71937168]
[1765707873836,0.0004,90129.0,90116.0,1.56265456]
[1765707874037,0.0004,90129.0,90128.0,1.27192501]
[1765707874240,0.00051598,90129.0,90128.0,0.46199501]
[1765707874459,0.00051598,90129.0,90128.0,0.43320501]
[1765707874701,0.00051598,90129.0,90128.0,0.46133718]
[1765707874924,0.00051598,90129.0,90128.0,0.54333718]
[1765707875600,0.00051598,90129.0,90128.0,0.60297743]
[1765707875798,0.00051598,90129.0,90128.0,1.41657743]
[1765707876215,0.00251598,90129.0,90128.0,1.41657743]
[1765707876416,0.00251598,90129.0,90128.0,1.35693718]
[1765707876830,0.00251598,90129.0,90128.0,1.70727743]
[1765707876970,0.00251598,90129.0,90128.0,1.64763718]
[1765707878738,0.00051598,90129.0,90128.0,1.64763718]
[1765707884911,0.00105454,90129.0,90128.0,1.64763718]
[1765707885263,0.00105454,90129.0,90128.0,1.7071985]
[1765707886165,0.00105454,90129.0,90128.0,1.64763718]
[1765707888004,0.00105454,90129.0,90128.0,0.64763718]
[1765707888212,0.00105454,90129.0,90128.0,1.64763718]
[1765707894130,0.00105454,90129.0,90128.0,0.64763718]
[1765707894332,0.00105454,90129.0,90128.0,1.64763718]
[1765707896670,4.54e-06,90129.0,90128.0,1.64763718]
[1765707896823,0.0004,90148.0,90128.0,1.64763718]
[1765707896824,0.0004,90148.0,90147.0,0.51255985]
[1765707897024,0.0004,90148.0,90147.0,1.69322111]
[1765707897285,0.0004,90148.0,90147.0,1.61372824]
[1765707897286,0.00096829,90148.0,90147.0,1.61372824]
[1765707897467,0.00096829,90148.0,90147.0,1.69762233]
[1765707897671,0.00096829,90148.0,90147.0,1.61816844]
[1765707897867,0.00196829,90148.0,90147.0,1.61816844]
[1765707898858,0.0004,90156.0,90155.0,0.51254016]
[1765707899061,0.0004,90156.0,90155.0,1.58306855]
[1765707899264,0.00063924,90156.0,90155.0,1.61370855]
[1765707899990,0.00063924,90156.0,90155.0,1.61814801]
[1765707900372,0.04351864,90192.0,90166.0,0.5125131]
[1765707900570,0.00078669,90167.0,90166.0,1.58304149]
[1765707900772,0.00111558,90167.0,90166.0,1.61368149]
[1765707900979,0.00111558,90167.0,90166.0,1.32298149]
[1765707901210,0.00111558,90167.0,90166.0,0.27183149]
[1765707901422,0.00272845,90167.0,90166.0,0.2218131]
[1765707901711,0.05755845,90167.0,90166.0,0.2218131]
[1765707902220,0.05955845,90167.0,90166.0,0.2218131]
[1765707902575,0.05955845,90167.0,90166.0,0.27183149]
[1765707903118,0.02718845,90167.0,90166.0,0.27183149]
[1765707903278,0.00472845,90167.0,90166.0,0.27183149]
[1765707903478,0.00272845,90167.0,90166.0,0.27383149]
[1765707903903,0.00272845,90167.0,90166.0,0.27683149]
[1765707904434,0.08528478,90167.0,90166.0,0.005]
[1765707905292,0.10108478,90167.0,90166.0,0.002]
[1765707905530,0.10108478,90167.0,90166.0,0.005]
[1765707905886,0.10108478,90167.0,90166.0,0.003]
[1765707906314,0.10108478,90167.0,90166.0,0.004]
[1765707906923,0.39178478,90167.0,90166.0,0.004]
[1765707907121,0.36405845,90167.0,90166.0,0.004]
[1765707907381,0.36405845,90167.0,90166.0,0.001]
[1765707907726,0.36405845,90167.0,90166.0,0.003]
[1765707914470,0.36405845,90167.0,90166.0,0.002]
[1765707914804,0.01109262,90150.0,90146.0,0.01109311]
[1765707915026,0.03355262,90150.0,90146.0,0.01109311]
[1765707915220,0.01479,90149.0,90146.0,0.01109311]
[1765707915388,0.01479,90149.0,90147.0,0.22185985]
[1765707915588,0.01479,90149.0,90146.0,0.01109311]
[1765707915793,0.04716,90149.0,90146.0,0.01109311]
[1765707916159,0.02246,90147.0,90146.0,0.01109311]
[1765707916587,0.05483,90147.0,90146.0,0.01109311]
[1765707916783,0.05483,90147.0,90138.0,0.05001839]
[1765707916986,0.03821,90145.0,90141.0,0.05001839]
[1765707917183,0.02246,90142.0,90141.0,0.06111212]
[1765707917626,0.05483,90142.0,90141.0,0.06111212]
[1765707917812,0.02773155,90150.0,90148.0,0.22185739]
[1765707918012,0.04346188,90156.0,90148.0,0.22185739]
[1765707918013,0.03237,90152.0,90148.0,0.22185739]
[1765707918213,0.04716,90149.0,90148.0,0.22185739]
[1765707918559,0.06962,90149.0,90148.0,0.22185739]
[1765707918780,0.06962,90149.0,90146.0,0.01109311]
[1765707919008,0.03237,90148.0,90146.0,0.01109311]
[1765707919342,0.02246,90147.0,90143.0,0.01109348]
[1765707919526,0.02246,90147.0,90144.0,0.01109336]
[1765707919759,0.02246,90147.0,90144.0,0.28296042]
[1765707919962,0.05483,90147.0,90146.0,0.001]
[1765707920139,0.05483,90147.0,90144.0,0.28296042]
[1765707921678,0.05483,90147.0,90144.0,0.28496042]
[1765707922081,0.03237,90146.0,90144.0,0.28496042]
[1765707922815,0.0158,90145.0,90144.0,0.28596042]
[1765707922976,0.0158,90145.0,90144.0,0.28296042]
[1765707923313,0.0158,90145.0,90144.0,0.28496042]
[1765707923820,0.0158,90145.0,90144.0,0.28296042]
[1765707923995,0.02773094,90152.0,90148.0,0.22185739]
[1765707924178,0.26531363,90151.0,90147.0,0.01109299]
[1765707924385,0.0434625,90151.0,90147.0,0.01109299]
[1765707924575,0.03826,90148.0,90147.0,0.01109299]
[1765707925195,0.0158,90148.0,90147.0,0.01109299]
[1765707926242,0.0158,90148.0,90147.0,0.01409299]
[1765707926738,0.04714,90148.0,90147.0,0.01409299]
[1765707927241,0.04714,90148.0,90147.0,0.01709299]
[1765707927717,0.06785,90148.0,90147.0,0.01709299]
[1765707929809,0.03651,90148.0,90147.0,0.01709299]
[1765707930258,0.0158,90148.0,90147.0,0.01709299]
[1765707932265,0.0158,90148.0,90147.0,0.006]
[1765707932464,0.0365,90148.0,90147.0,0.006]
[1765707932667,0.06817,90148.0,90147.0,0.006]
[1765707935483,0.06817,90148.0,90145.0,0.01109323]
[1765707935682,0.0207,90146.0,90145.0,0.01109323]
[1765707936130,0.05237,90146.0,90145.0,0.01109323]
[1765707936868,0.05237,90146.0,90145.0,0.01309323]
[1765707937078,0.05237,90146.0,90145.0,0.01509323]
[1765707937285,0.04747,90156.0,90149.0,0.01109274]
[1765707937503,0.02773063,90153.0,90151.0,0.0110925]
[1765707937675,0.04348032,90154.0,90151.0,0.0110925]
[1765707937934,0.01575,90154.0,90151.0,0.0110925]
[1765707938337,0.01575,90154.0,90151.0,0.23294125]
[1765707938920,0.01575,90154.0,90153.0,0.22184508]
[1765707939321,0.06812,90154.0,90151.0,0.0120925]
[1765707939638,0.06812,90154.0,90151.0,0.23394219]
[1765707939984,0.0207,90152.0,90151.0,0.23294219]
[1765707940263,0.0207,90152.0,90150.0,0.01109262]
[1765707940676,0.05237,90152.0,90150.0,0.01109262]
[1765707941078,0.25364083,90152.0,90148.0,0.01109286]
[1765707941283,0.01109237,90152.0,90148.0,0.01109286]
[1765707941485,0.24868569,90154.0,90148.0,0.23294856]
[1765707941486,0.02684213,90154.0,90148.0,0.23294856]
[1765707941869,0.02684213,90154.0,90151.0,0.001]
[1765707942252,0.03167,90153.0,90151.0,0.001]
[1765707942633,0.26460968,90153.0,90148.0,0.01109286]
[1765707942838,0.0110925,90151.0,90150.0,0.002]
[1765707943276,0.01109299,90147.0,90142.0,0.23296504]
[1765707943479,0.02689188,90156.0,90150.0,0.01109262]
[1765707943676,0.02773063,90153.0,90151.0,0.0140925]
[1765707943987,0.05237,90152.0,90151.0,0.001]
[1765707944856,0.05237,90152.0,90148.0,0.23294924]
[1765707945055,0.03167,90151.0,90149.0,0.01109274]
[1765707945260,0.03167,90151.0,90150.0,0.001]
[1765707945462,0.0207,90150.0,90149.0,0.01109274]
[1765707945870,0.05237,90150.0,90149.0,0.01109274]
[1765707947282,0.05237,90150.0,90149.0,0.01409274]
[1765707948068,0.05237,90150.0,90149.0,0.01609274]
[1765707948270,0.01575,90154.0,90151.0,0.0110925]
[1765707948472,0.04742,90154.0,90151.0,0.0110925]
[1765707948711,0.03167,90153.0,90151.0,0.0110925]
[1765707949608,0.0207,90152.0,90151.0,0.0140925]
[1765707950007,0.0207,90152.0,90151.0,0.0130925]
[1765707950197,0.05237,90152.0,90151.0,0.0110925]
[1765707950398,0.05237,90152.0,90151.0,0.0130925]
[1765707950622,0.05237,90152.0,90151.0,0.002]
[1765707951010,0.06346237,90152.0,90149.0,0.01109274]
[1765707951178,0.06346237,90152.0,90148.0,0.01109286]
[1765707951179,0.0207,90150.0,90148.0,0.01109286]
[1765707951476,0.03666,90149.0,90148.0,0.01109286]
[1765707951878,0.06833,90149.0,90148.0,0.01109286]
[1765707952409,0.01596,90149.0,90148.0,0.01209286]
[1765707952612,0.01596,90149.0,90148.0,0.01109286]
[1765707952793,0.06833,90149.0,90148.0,0.01109286]
[1765707952998,0.06833,90149.0,90148.0,0.01209286]
[1765707953545,0.06833,90149.0,90148.0,0.01409286]
[1765707953695,0.01596,90149.0,90148.0,0.01409286]
[1765707955162,0.06833,90149.0,90148.0,0.003]
[1765707955322,0.09606186,90149.0,90148.0,0.003]
[1765707956999,0.06833,90149.0,90148.0,0.001]
[1765707957482,0.06833,90149.0,90148.0,0.003]
[1765707957683,0.06833,90149.0,90148.0,0.002]
[1765707958033,0.06833,90149.0,90148.0,0.003]
[1765707960963,0.03666,90149.0,90148.0,0.003]
[1765707961249,0.01596,90149.0,90148.0,0.003]
[1765707961909,0.04348032,90154.0,90150.0,0.01109262]
[1765707962082,0.02684213,90154.0,90151.0,0.0110925]
[1765707962287,0.03021,90153.0,90151.0,0.0110925]
[1765707962834,0.01943,90152.0,90151.0,0.0110925]